fUST/lending_fUST_20260216
["ID","MTS","AMOUNT","RATE_DAILY","PERIOD"]
[405548913,1771192507012,1012.02702782,0.00013821,2]
[405548914,1771192507049,1000.0,0.00013821,2]
[405548915,1771192507099,1597.35955262,0.00014368,2]
[405548916,1771192507319,500.0,0.00013273,2]
[405548917,1771192507410,1000.0,0.00013821,2]
[405548918,1771192507477,505.75940183,0.00014368,2]
[405548919,1771192508289,500.0,0.00013699,2]
[405548920,1771192508344,1000.0,0.00014247,2]
[405548921,1771192508396,1500.0,0.00014795,2]
[405548922,1771192508456,1781.61803281,0.00015342,2]
[405548923,1771192508762,171.17664033,0.00013699,2]
[405548924,1771192508792,500.0,0.00013273,2]
[405548925,1771192508821,900.14465402,0.00015464,2]
[405548926,1771192508853,1000.0,0.00013821,2]
[405548927,1771192508905,1500.0,0.00014368,2]
[405548928,1771192508938,2000.0,0.00014916,2]
[405548929,1771192510036,500.0,0.00013273,2]
[405548930,1771192510089,1000.0,0.00013821,2]
[405548931,1771192510121,500.0,0.00013273,2]
[405548932,1771192510150,1500.0,0.00014368,2]
[405548933,1771192510187,503.49981196,0.00013821,2]
[405548934,1771192510217,2000.0,0.00014916,2]
[405548935,1771192510250,2500.0,0.00015464,2]
[405548936,1771192510385,152.17297911,0.00013673,2]
[405548937,1771192510418,500.0,0.00013699,2]
[405548938,1771192510448,1000.0,0.00014247,2]
[405548939,1771192510493,1446.72689225,0.00014795,2]
[405548940,1771192513203,500.0,0.00013699,2]
[405548941,1771192513253,1000.0,0.00014247,2]
[405548942,1771192513331,1500.0,0.00014795,2]
[405548943,1771192513377,1012.23112847,0.00015342,2]
[405548944,1771192513425,502.45524189,0.00013699,2]
[405548945,1771192513696,450.13720227,0.00013699,2]
[405548946,1771192514912,300.0,0.00013673,2]
[405548947,1771192514943,600.0,0.00014221,2]
[405548948,1771192514979,1200.0,0.00015316,2]
[405548949,1771192515025,900.0,0.00014768,2]
[405548950,1771192515654,607.22203791,0.00013699,2]
[405548951,1771192516749,444.04698874,0.00013699,2]
[405548952,1771192517122,500.0,0.00013273,2]
[405548953,1771192517180,1000.0,0.00013821,2]
[405548954,1771192517237,866.09955745,0.00014368,2]
[405548955,1771192517443,501.35958315,0.00013273,2]
[405548956,1771192518041,158.41402247,0.00013699,2]
[405548957,1771192518872,506.49453126,0.00013699,2]
[405548958,1771192518903,500.0,0.00013273,2]
[405548959,1771192518942,1500.0,0.00014368,2]
[405548960,1771192518976,2000.0,0.00014916,2]
[405548961,1771192519005,2500.0,0.00015464,2]
[405548962,1771192519067,1000.0,0.00013821,2]
[405548963,1771192519461,502.60230823,0.00013699,2]
[405548964,1771192519872,500.0,0.00013699,2]
[405548965,1771192519911,452.20051875,0.00014247,2]
[405548966,1771192520186,500.0,0.00013273,2]
[405548967,1771192520216,1000.0,0.00013821,2]
[405548968,1771192520273,1500.0,0.00014368,2]
[405548969,1771192520334,923.14509486,0.00014916,2]
[405548974,1771192521264,159.05381086,0.00013699,2]
[405548975,1771192524181,500.0,0.00013699,2]
[405548976,1771192524212,507.75012435,0.00014247,2]
[405548977,1771192524573,500.0,0.00013273,2]
[405548978,1771192524626,1500.0,0.00014368,2]
[405548979,1771192524692,2000.0,0.00014916,2]
[405548980,1771192524753,2000.0,0.00015464,2]
[405548981,1771192524792,1000.0,0.00013821,2]
[405548982,1771192525742,236.851392,0.00013273,2]
[405548983,1771192525897,500.0,0.00013273,2]
[405548984,1771192525951,504.56939145,0.00013821,2]
[405548985,1771192526202,500.0,0.00013273,2]
[405548986,1771192526240,2500.0,0.00015464,2]
[405548987,1771192526312,1000.0,0.00013821,2]
[405548988,1771192526365,1500.0,0.00014368,2]
[405548989,1771192526469,2000.0,0.00014916,2]
[405548990,1771192526825,504.89035502,0.00013699,2]
[405548991,1771192527228,500.0,0.00013273,2]
[405548992,1771192527270,155.38166569,0.00013699,2]
[405548993,1771192527299,1008.71108275,0.00013821,2]
[405548994,1771192527401,500.0,0.00013699,2]
[405548995,1771192527450,1000.0,0.00014247,2]
[405548996,1771192527507,1500.0,0.00014795,2]
[405548997,1771192527569,2000.0,0.00015342,2]
[405548998,1771192527673,500.0,0.00013699,2]
[405548999,1771192527723,500.0,0.00013273,2]
[405549000,1771192527753,1000.0,0.00014247,2]
[405549001,1771192527784,1500.0,0.00014795,2]
[405549002,1771192527956,1000.0,0.00013821,2]
[405549003,1771192527991,2000.0,0.00015342,2]
[405549004,1771192528020,559.43874653,0.00014368,2]
[405549005,1771192528060,500.0,0.00013273,2]
[405549006,1771192528096,1000.0,0.00013821,2]
[405549007,1771192528124,326.02139425,0.00014368,2]
[405549008,1771192528271,487.34649707,0.00013699,2]
[405549010,1771192528342,568.35498859,0.00013699,2]
[405549011,1771192528602,500.0,0.00013699,2]
[405549012,1771192528658,1000.0,0.00014247,2]
[405549013,1771192528707,971.07220088,0.00014795,2]
[405549014,1771192529525,500.0,0.00013273,2]
[405549015,1771192529591,1000.0,0.00013821,2]
[405549016,1771192529637,1500.0,0.00014368,2]
[405549017,1771192529697,1284.06510655,0.00014916,2]
[405549018,1771192529795,238.71388037,0.00013699,2]
[405549019,1771192531295,206.29616863,0.00013273,2]
[405549020,1771192531404,159.3367278,0.00013699,2]
[405549021,1771192531466,439.63963557,0.00013273,2]
[405549022,1771192533256,500.0,0.00013273,2]
[405549023,1771192533310,504.05990296,0.00013821,2]
[405549025,1771192537519,501.86756751,0.00013273,2]
[405549028,1771192555242,500.0,0.00013699,2]
[405549029,1771192555298,563.91756849,0.00014247,2]
[405549031,1771192567676,5000.0,0.00015601,2]
[405549032,1771192567773,500.0,0.00013699,2]
[405549033,1771192567828,1000.0,0.00014247,2]
[405549034,1771192567880,1500.0,0.00014795,2]
[405549035,1771192567937,460.80358716,0.00015342,2]
[405549036,1771192574925,331.32986241,0.00013699,2]
[405549037,1771192577424,500.0,0.00013699,2]
[405549038,1771192577478,1061.5583841,0.00014247,2]
[405549039,1771192578047,500.0,0.00013273,2]
[405549040,1771192578112,1000.0,0.00013821,2]
[405549041,1771192578161,1500.0,0.00014368,2]
[405549042,1771192578214,714.17974413,0.00014916,2]
[405549043,1771192579297,500.0,0.00013273,2]
[405549044,1771192579353,1000.0,0.00013821,2]
[405549045,1771192579410,223.87525113,0.00014368,2]
[405549046,1771192581904,501.3540148,0.00013273,2]
[405549047,1771192582899,500.0,0.00013273,2]
[405549048,1771192582952,1000.0,0.00013821,2]
[405549049,1771192583007,1500.0,0.00014368,2]
[405549050,1771192583170,2000.0,0.00014916,2]
[405549051,1771192583203,2150.87115939,0.00015464,2]
[405549052,1771192584126,500.0,0.00013699,2]
[405549053,1771192584187,334.47335005,0.00014247,2]
[405549054,1771192586781,500.0,0.00013699,2]
[405549055,1771192586813,546.61158761,0.00014247,2]
[405549056,1771192586852,500.0,0.00013699,2]
[405549057,1771192586883,500.0,0.00013273,2]
[405549058,1771192586913,2330.07440548,0.00015464,2]
[405549059,1771192586944,1000.0,0.00014247,2]
[405549060,1771192586979,500.0,0.00013699,2]
[405549061,1771192587009,1500.0,0.00014368,2]
[405549062,1771192587048,1500.0,0.00014795,2]
[405549063,1771192587078,1000.0,0.00013821,2]
[405549064,1771192587107,1000.0,0.00014247,2]
[405549065,1771192587142,2000.0,0.00015342,2]
[405549066,1771192587172,332.93679327,0.00015342,2]
[405549067,1771192587202,1500.0,0.00014795,2]
[405549068,1771192587231,2000.0,0.00014916,2]
[405549069,1771192587640,500.0,0.00013699,2]
[405549070,1771192587693,500.59981331,0.00014247,2]
[405549071,1771192587770,462.44233856,0.00013699,2]
[405549072,1771192588097,500.0,0.00013699,2]
[405549073,1771192588151,1003.96361043,0.00014247,2]
[405549074,1771192588483,500.2543677,0.00013699,2]
[405549075,1771192588766,500.0,0.00013273,2]
[405549076,1771192588825,1000.0,0.00013821,2]
[405549077,1771192588873,1500.0,0.00014368,2]
[405549078,1771192588934,1378.1463784,0.00014916,2]
[405549079,1771192589022,162.69145573,0.00013273,2]
[405549080,1771192589080,5000.0,0.00015601,2]
[405549081,1771192589692,500.0,0.00013273,2]
[405549082,1771192589741,1000.0,0.00013821,2]
[405549083,1771192589798,1400.65366647,0.00014368,2]
[405549084,1771192590909,500.0,0.00013699,2]
[405549085,1771192590959,675.91604172,0.00014247,2]
[405549086,1771192590992,1000.0,0.00014247,2]
[405549087,1771192591023,1500.0,0.00014795,2]
[405549088,1771192591053,500.0,0.00013699,2]
[405549089,1771192591083,2000.0,0.00015342,2]
[405549091,1771192592930,502.63944371,0.00013699,2]
[405549092,1771192594037,500.0,0.00013273,2]
[405549093,1771192594076,1000.0,0.00013821,2]
[405549094,1771192594140,1500.0,0.00014368,2]
[405549095,1771192594186,864.13516349,0.00014916,2]
[405549096,1771192598375,591.75567642,0.00013699,2]
[405549097,1771192598404,500.0,0.00013699,2]
[405549098,1771192598438,1000.0,0.00014247,2]
[405549099,1771192598488,1500.0,0.00014795,2]
[405549100,1771192598544,2000.0,0.00015342,2]
[405549101,1771192599360,202.16482637,0.00015068,2]
[405549102,1771192600859,180.36969361,0.00014247,2]
[405549103,1771192600916,500.0,0.00013699,2]
[405549104,1771192602475,500.0,0.00013699,2]
[405549105,1771192602535,461.53813153,0.00014247,2]
[405549106,1771192610957,5000.0,0.00015601,2]
[405549107,1771192611348,500.0,0.00013273,2]
[405549108,1771192611408,396.55626807,0.00013821,2]
[405549110,1771192623683,500.0,0.00013699,2]
[405549112,1771192623718,1000.0,0.00014247,2]
[405549113,1771192623782,510.12552765,0.00015342,2]
[405549114,1771192624116,1500.0,0.00014795,2]
[405549115,1771192624285,300.0,0.00015361,2]
[405549116,1771192626568,537.98895604,0.00013699,2]
[405549117,1771192626830,500.0,0.00013273,2]
[405549118,1771192626873,599.57108633,0.00014368,2]
[405549119,1771192626925,1000.0,0.00013821,2]
[405549120,1771192627432,300.0,0.00013673,2]
[405549121,1771192627492,600.0,0.00014221,2]
[405549122,1771192627540,900.0,0.00014768,2]
[405549123,1771192627577,500.0,0.00013699,2]
[405549124,1771192627606,1200.0,0.00015316,2]
[405549125,1771192627637,1000.0,0.00014247,2]
[405549126,1771192627675,500.0,0.00013699,2]
[405549127,1771192627704,1500.0,0.00014795,2]
[405549128,1771192627739,1090.71458805,0.00014247,2]
[405549129,1771192627773,1004.45412783,0.00015342,2]
[405549130,1771192627856,500.0,0.00013273,2]
[405549131,1771192627887,1000.0,0.00013821,2]
[405549132,1771192627917,1008.3924674,0.00014368,2]
[405549133,1771192628186,500.0,0.00013699,2]
[405549134,1771192628232,1000.0,0.00014247,2]
[405549135,1771192628262,309.44403142,0.00013699,2]
[405549136,1771192628295,1504.11395649,0.00014795,2]
[405549137,1771192628414,500.0,0.00013699,2]
[405549138,1771192628478,1000.0,0.00014247,2]
[405549139,1771192628535,1387.57856749,0.00014795,2]
[405549140,1771192629337,501.69468888,0.00013273,2]
[405549141,1771192629925,500.0,0.00013273,2]
[405549142,1771192629979,1000.0,0.00013821,2]
[405549143,1771192630040,1500.0,0.00014368,2]
[405549144,1771192630095,2000.0,0.00014916,2]
[405549145,1771192630148,2500.0,0.00015464,2]
[405549146,1771192630357,500.0,0.00013699,2]
[405549147,1771192630407,1000.0,0.00014247,2]
[405549148,1771192630467,1500.0,0.00014795,2]
[405549149,1771192630518,643.95213499,0.00015342,2]
[405549150,1771192630882,500.0,0.00013699,2]
[405549151,1771192630913,503.55351473,0.00014247,2]
[405549152,1771192632196,500.0,0.00013699,2]
[405549153,1771192632254,1500.0,0.00014795,2]
[405549154,1771192632309,1000.0,0.00014247,2]
[405549155,1771192632359,851.89173672,0.00015342,2]
[405549156,1771192632455,500.0,0.00013273,2]
[405549157,1771192632500,1000.0,0.00013821,2]
[405549158,1771192632558,1007.47156642,0.00014368,2]
[405549159,1771192632587,5000.0,0.00015601,2]
[405549160,1771192633077,164.63461031,0.00013699,2]
[405549164,1771192633553,500.0,0.00013699,2]
[405549166,1771192633610,483.32609398,0.00014247,2]
[405549169,1771192640430,500.0,0.00013699,2]
[405549170,1771192640483,1000.0,0.00014247,2]
[405549171,1771192640534,1500.0,0.00014795,2]
[405549172,1771192640591,2000.0,0.00015342,2]
[405549173,1771192641502,500.0,0.00013699,2]
[405549174,1771192641536,301.52384734,0.00014247,2]
[405549175,1771192644468,527.85110527,0.00013699,2]
[405549179,1771192644821,1002.74738382,0.00014247,2]
[405549180,1771192644891,500.0,0.00013699,2]
[405549181,1771192653927,5000.0,0.00015601,2]
[405549199,1771192675553,5000.0,0.00015601,2]
[405549204,1771192683831,5000.0,0.00015601,2]
[405549205,1771192692633,5000.0,0.00015601,2]
[405549206,1771192700349,5000.0,0.00015601,2]
[405549207,1771192708285,5000.0,0.00015601,2]
[405549208,1771192716474,5000.0,0.00015601,2]
[405549209,1771192724273,5000.0,0.00015601,2]
[405549211,1771192732001,5000.0,0.00015601,2]
[405549212,1771192740022,5000.0,0.00015601,2]
[405549213,1771192747729,5000.0,0.00015601,2]
[405549214,1771192755460,5000.0,0.00015601,2]
[405549216,1771192763169,5000.0,0.00015601,2]
[405549225,1771192771104,5000.0,0.00015601,2]
[405549227,1771192778886,5000.0,0.00015601,2]
[405549228,1771192787284,5000.0,0.00015601,2]
[405549229,1771192795248,5000.0,0.00015601,2]
[405549230,1771192802639,168.899945,0.0001214,2]
[405549231,1771192802867,168.899945,0.00012392,2]
[405549232,1771192803097,168.899945,0.00012645,2]
[405549233,1771192803170,5000.0,0.00015601,2]
[405549235,1771192803339,168.899945,0.00012898,2]
[405549236,1771192803443,500.0,0.00013699,2]
[405549237,1771192803498,441.13025181,0.00014247,2]
[405549238,1771192803528,500.49677815,0.00013699,2]
[405549239,1771192803611,168.899945,0.00013151,2]
[405549240,1771192803892,168.899945,0.00013404,2]
[405549241,1771192803995,500.0,0.00013273,2]
[405549242,1771192804052,1002.32589535,0.00013821,2]
[405549243,1771192804130,168.899945,0.00013657,2]
[405549244,1771192804423,168.899945,0.0001391,2]
[405549245,1771192804461,1715.49,0.00015,2]
[405549246,1771192804589,168.899945,0.00014163,2]
[405549247,1771192804803,168.899945,0.00014416,2]
[405549248,1771192804945,500.0,0.00013699,2]
[405549249,1771192804996,543.35403202,0.00014795,2]
[405549250,1771192805049,168.899945,0.00014669,2]
[405549251,1771192805080,1000.0,0.00014247,2]
[405549252,1771192805114,1715.49,0.00015,2]
[405549253,1771192805259,168.899945,0.00014921,2]
[405549254,1771192805489,168.899945,0.00015174,2]
[405549255,1771192805710,1715.49,0.000151,2]
[405549256,1771192806158,1715.49,0.000151,2]
[405549257,1771192806719,1715.49,0.000151,2]
[405549258,1771192807271,1715.49,0.000152,2]
[405549259,1771192807851,1715.49,0.000152,2]
[405549260,1771192808373,1715.49,0.000152,2]
[405549261,1771192808406,500.0,0.00013699,2]
[405549262,1771192808455,1000.0,0.00014247,2]
[405549263,1771192808509,1500.0,0.00014795,2]
[405549264,1771192808569,2000.0,0.00015342,2]
[405549265,1771192808945,1715.49,0.000152,2]
[405549266,1771192808975,500.0,0.00013699,2]
[405549267,1771192809027,1500.0,0.00014795,2]
[405549268,1771192809093,1000.0,0.00014247,2]
[405549269,1771192809496,1715.49,0.000153,2]
[405549270,1771192810046,1715.49,0.000153,2]
[405549271,1771192810085,500.0,0.00013699,2]
[405549272,1771192810128,1000.0,0.00014247,2]
[405549273,1771192810183,447.98893381,0.00014795,2]
[405549274,1771192810361,500.0,0.00013699,2]
[405549275,1771192810413,1000.0,0.00014247,2]
[405549276,1771192810480,466.06241182,0.00014795,2]
[405549277,1771192810565,500.0,0.00013699,2]
[405549278,1771192810711,1715.49,0.000153,2]
[405549279,1771192810740,1000.0,0.00014247,2]
[405549280,1771192810770,1500.0,0.00014795,2]
[405549281,1771192810801,500.0,0.00013273,2]
[405549282,1771192810836,2000.0,0.00015342,2]
[405549283,1771192810867,1000.0,0.00013821,2]
[405549284,1771192810904,1000.0,0.00014368,2]
[405549285,1771192811013,500.0,0.00013273,2]
[405549286,1771192811069,1000.0,0.00013821,2]
[405549287,1771192811098,500.0,0.00013699,2]
[405549288,1771192811137,1000.0,0.00014247,2]
[405549289,1771192811167,2500.0,0.00015464,2]
[405549290,1771192811195,1715.49,0.000154,2]
[405549291,1771192811225,1500.0,0.00014368,2]
[405549292,1771192811255,1500.0,0.00014795,2]
[405549293,1771192811284,2000.0,0.00014916,2]
[405549294,1771192811316,5000.0,0.00015601,2]
[405549295,1771192811349,442.58597116,0.00015342,2]
[405549296,1771192811654,500.0,0.00013699,2]
[405549297,1771192811712,724.00137725,0.00014247,2]
[405549298,1771192811743,1715.49,0.000154,2]
[405549299,1771192812285,1715.49,0.000154,2]
[405549300,1771192812605,1000.0,0.00014247,2]
[405549301,1771192812638,500.0,0.00013699,2]
[405549302,1771192812714,1500.0,0.00014795,2]
[405549303,1771192812761,222.57637684,0.00015342,2]
[405549304,1771192812839,1715.49,0.000155,2]
[405549305,1771192812979,503.02878083,0.00013273,2]
[405549306,1771192813016,500.0,0.00013273,2]
[405549307,1771192813063,1033.779704,0.00013821,2]
[405549308,1771192813296,1715.49,0.000155,2]
[405549309,1771192813747,1715.49,0.000155,2]
[405549310,1771192814009,500.0,0.00013273,2]
[405549311,1771192814062,1000.0,0.00013821,2]
[405549312,1771192814165,2000.0,0.00014916,2]
[405549313,1771192814216,1500.0,0.00014368,2]
[405549314,1771192814280,2500.0,0.00015464,2]
[405549315,1771192814310,1715.49,0.000156,2]
[405549316,1771192814545,551.14349499,0.00013699,2]
[405549317,1771192814687,174.39057299,0.00013699,2]
[405549318,1771192814717,500.0,0.00013699,2]
[405549319,1771192814754,1000.0,0.00014247,2]
[405549320,1771192814805,1500.0,0.00014795,2]
[405549321,1771192814850,1715.49,0.000156,2]
[405549322,1771192814880,2000.0,0.00015342,2]
[405549323,1771192814944,500.0,0.00013699,2]
[405549324,1771192814988,1004.2102287,0.00014247,2]
[405549325,1771192815502,1715.49,0.000156,2]
[405549327,1771192816054,1715.49,0.000156,2]
[405549328,1771192816234,500.0,0.00013699,2]
[405549329,1771192816289,1000.0,0.00014247,2]
[405549330,1771192816345,1500.0,0.00014795,2]
[405549331,1771192816403,2000.0,0.00015342,2]
[405549332,1771192816588,500.0,0.00013699,2]
[405549333,1771192816644,1500.0,0.00014795,2]
[405549334,1771192816847,2000.0,0.00015342,2]
[405549335,1771192816920,1000.0,0.00014247,2]
[405549336,1771192816953,151.0,0.00015601,2]
[405549337,1771192817089,500.0,0.00013699,2]
[405549338,1771192817147,1000.0,0.00014247,2]
[405549339,1771192817197,1004.38967495,0.00014795,2]
[405549340,1771192817498,500.0,0.00013699,2]
[405549341,1771192817543,1000.0,0.00014247,2]
[405549342,1771192817600,1004.82386244,0.00014795,2]
[405549343,1771192817631,500.0,0.00013273,2]
[405549344,1771192817674,1000.0,0.00013821,2]
[405549345,1771192817718,1500.0,0.00014368,2]
[405549346,1771192817748,799.65995619,0.00014916,2]
[405549347,1771192817876,500.0,0.00013699,2]
[405549348,1771192817926,1000.0,0.00014247,2]
[405549349,1771192817981,504.72358128,0.00014795,2]
[405549350,1771192818076,258.56773433,0.00015601,2]
[405549351,1771192819923,500.0,0.00013273,2]
[405549352,1771192819974,1000.0,0.00013821,2]
[405549353,1771192820028,1500.0,0.00014368,2]
[405549354,1771192820084,553.04002854,0.00013699,2]
[405549355,1771192820120,2000.0,0.00014916,2]
[405549356,1771192820155,500.0,0.00013699,2]
[405549357,1771192820188,510.65295815,0.00015464,2]
[405549358,1771192820224,1000.0,0.00014247,2]
[405549359,1771192820284,1024.51061241,0.00014795,2]
[405549360,1771192820558,5000.0,0.00015601,2]
[405549361,1771192820689,500.0,0.00013699,2]
[405549362,1771192820725,1000.0,0.00014247,2]
[405549363,1771192820777,1505.43019717,0.00014795,2]
[405549364,1771192821192,500.0,0.00013273,2]
[405549365,1771192821247,1000.0,0.00013821,2]
[405549366,1771192821300,1500.0,0.00014368,2]
[405549367,1771192821363,911.9362964,0.00014916,2]
[405549368,1771192821571,500.0,0.00013273,2]
[405549369,1771192821631,1000.0,0.00013821,2]
[405549370,1771192821675,1500.0,0.00014368,2]
[405549371,1771192821737,2000.0,0.00014916,2]
[405549372,1771192821784,1998.11681979,0.00015464,2]
[405549373,1771192822303,500.0,0.00013699,2]
[405549374,1771192822364,1500.0,0.00014795,2]
[405549375,1771192822408,1000.0,0.00014247,2]
[405549376,1771192822455,500.0,0.00013273,2]
[405549377,1771192822488,2000.0,0.00015342,2]
[405549378,1771192822524,1000.0,0.00013821,2]
[405549379,1771192822559,500.0,0.00013273,2]
[405549380,1771192822590,653.37535352,0.00013821,2]
[405549381,1771192822623,502.89690238,0.00013273,2]
[405549382,1771192822760,723.7536434,0.00014368,2]
[405549383,1771192823851,500.0,0.00013699,2]
[405549384,1771192823905,1000.0,0.00014247,2]
[405549385,1771192823974,1147.18953614,0.00014795,2]
[405549386,1771192824355,500.0,0.00013273,2]
[405549387,1771192824408,1000.0,0.00013821,2]
[405549388,1771192824591,1504.70901009,0.00014368,2]
[405549389,1771192826402,500.0,0.00013699,2]
[405549390,1771192826458,557.75835328,0.00014247,2]
[405549391,1771192827092,497.90105026,0.00013273,2]
[405549392,1771192827299,500.0,0.00013699,2]
[405549393,1771192827354,1000.0,0.00014247,2]
[405549394,1771192827404,158.37045891,0.00014795,2]
[405549395,1771192830247,1588.32161627,0.00015601,2]
[405549396,1771192830431,44942.1809194,0.00014919,2]
[405549397,1771192830464,300.0,0.00013673,2]
[405549398,1771192830500,600.0,0.00014221,2]
[405549399,1771192830540,914.7660938,0.00014768,2]
[405549400,1771192836134,1715.47,0.00015,2]
[405549412,1771192839188,5000.0,0.00015601,2]
[405549448,1771192846923,5000.0,0.00015601,2]
[405549462,1771192859427,500.0,0.00013273,2]
[405549463,1771192859481,1000.0,0.00013821,2]
[405549464,1771192859540,1500.0,0.00014368,2]
[405549465,1771192859600,2000.0,0.00014916,2]
[405549466,1771192859646,2500.0,0.00015464,2]
[405549467,1771192863125,5000.0,0.00015601,2]
[405549470,1771192870822,5000.0,0.00015601,2]
[405549501,1771192876562,500.0,0.00013699,2]
[405549502,1771192876600,1000.0,0.00014247,2]
[405549503,1771192876656,506.31138658,0.00014795,2]
[405549504,1771192876970,568.90559229,0.00013699,2]
[405549505,1771192877086,1101.30571462,0.00014795,2]
[405549506,1771192877270,500.0,0.00013699,2]
[405549507,1771192877303,1000.0,0.00014247,2]
[405549508,1771192879233,500.0,0.00013273,2]
[405549509,1771192879270,1000.0,0.00013821,2]
[405549510,1771192879331,1500.0,0.00014368,2]
[405549511,1771192879376,2000.0,0.00014916,2]
[405549512,1771192879429,2500.0,0.00015464,2]
[405549524,1771192886053,5000.0,0.00015601,2]
[405549525,1771192886419,500.0,0.00013699,2]
[405549526,1771192886479,501.24504315,0.00014247,2]
[405549536,1771192886926,500.0,0.00013273,2]
[405549537,1771192886961,1000.0,0.00013821,2]
[405549538,1771192887007,1357.12689349,0.00015464,2]
[405549539,1771192887072,1500.0,0.00014368,2]
[405549540,1771192887121,2000.0,0.00014916,2]
[405549544,1771192891940,284.14803717,0.00013273,2]
[405549552,1771192893676,500.0,0.00013699,2]
[405549553,1771192893907,502.16279146,0.00013699,2]
[405549554,1771192893964,5000.0,0.00015601,2]
[405549555,1771192894584,500.0,0.00013699,2]
[405549556,1771192894636,432.66951923,0.00014247,2]
[405549557,1771192894733,469.96251876,0.00013273,2]
[405549558,1771192895551,1000.0,0.00014247,2]
[405549559,1771192895587,600.34940187,0.00014795,2]
[405549560,1771192895649,500.0,0.00013699,2]
[405549561,1771192895883,462.58219114,0.00013699,2]
[405549562,1771192897179,161.42515465,0.00013699,2]
[405549565,1771192897974,500.0,0.00013699,2]
[405549566,1771192898004,1000.0,0.00014247,2]
[405549567,1771192898056,704.05729518,0.00014795,2]
[405549568,1771192898943,500.0,0.00013699,2]
[405549569,1771192899779,200.42575177,0.000156,2]
[405549570,1771192908777,5000.0,0.00015601,2]
[405549581,1771192916792,5000.0,0.00015601,2]
[405549582,1771192925279,500.0,0.00013273,2]
[405549583,1771192925320,1000.0,0.00013821,2]
[405549584,1771192925367,1500.0,0.00014368,2]
[405549585,1771192925427,2000.0,0.00014916,2]
[405549586,1771192925486,2090.07111035,0.00015464,2]
[405549587,1771192927794,500.0,0.00013699,2]
[405549588,1771192927849,1000.0,0.00014247,2]
[405549589,1771192927884,1500.0,0.00014795,2]
[405549590,1771192927923,2000.0,0.00015342,2]
[405549591,1771192928653,500.0,0.00013699,2]
[405549592,1771192928707,1000.0,0.00014247,2]
[405549593,1771192928763,1500.0,0.00014795,2]
[405549594,1771192928818,2000.0,0.00015342,2]
[405549595,1771192929166,500.0,0.00013273,2]
[405549596,1771192929214,1000.0,0.00013821,2]
[405549597,1771192929281,2000.0,0.00014916,2]
[405549598,1771192929336,2500.0,0.00015464,2]
[405549599,1771192931930,5000.0,0.00015601,2]
[405549600,1771192933343,1500.0,0.00014368,2]